fUST/lending_fUST_20251127
["ID","MTS","AMOUNT","RATE_DAILY","PERIOD"]
[394947728,1764186644746,-149.4082533,0.00010336,2]
[394947729,1764186644793,-350.5917467,0.00010336,2]
[394947730,1764186644802,-500.0,0.00010336,2]
[394947731,1764186644812,-500.0,0.00010336,2]
[394947732,1764186644821,-500.0,0.00010336,2]
[394947733,1764186644830,-500.0,0.00010336,2]
[394947734,1764186644839,-500.0,0.00010336,2]
[394947735,1764186644848,-500.0,0.00010336,2]
[394947736,1764186644858,-500.0,0.00010336,2]
[394947737,1764186644867,-500.0,0.00010336,2]
[394947738,1764186644877,-500.0,0.00010336,2]
[394947739,1764186644886,-500.0,0.00010336,2]
[394947740,1764186644896,-500.0,0.00010336,2]
[394947741,1764186644906,-500.0,0.00010336,2]
[394947742,1764186644919,-500.0,0.00010336,2]
[394947743,1764186644929,-500.0,0.00010336,2]
[394947744,1764186644939,-500.0,0.00010336,2]
[394947745,1764186644948,-500.0,0.00010336,2]
[394947746,1764186644959,-500.0,0.00010336,2]
[394947747,1764186644968,-500.0,0.00010336,2]
[394947748,1764186644978,-500.0,0.00010336,2]
[394947749,1764186644987,-500.0,0.00010336,2]
[394947750,1764186644999,-650.00000003,0.00010336,2]
[394947751,1764186645009,-500.0,0.00010336,2]
[394947752,1764186645018,-16750.38379415,0.00010337,2]
[394947753,1764186645030,-5396.0609,0.00010337,2]
[394947782,1764186646542,-1090.43360301,0.00010337,2]
[394947783,1764186646551,-1200.0,0.00010337,2]
[394947785,1764186646561,-500.0,0.00010338,2]
[394947786,1764186646570,-76011.24908393,0.00010339,2]
[394947787,1764186646580,-5000.0,0.00010339,2]
[394947788,1764186646595,-4301.0264851,0.00010339,2]
[394947790,1764186687196,221.98916572,0.0001049,3]
[394947791,1764187042190,216.2202196,9.033e-05,2]
[394947792,1764187064000,216.2202196,9.033e-05,2]
[394947793,1764187086340,216.2202196,9.033e-05,2]
[394947794,1764187108332,216.2202196,9.033e-05,2]
[394947795,1764187130638,216.2202196,9.033e-05,2]
[394947796,1764187153193,14.72764785,9.033e-05,2]
[394947798,1764187614293,426.49257175,8.59e-05,2]
[394947799,1764187636204,426.49257175,8.59e-05,2]
[394947800,1764187658106,426.49257175,8.59e-05,2]
[394947801,1764187680926,426.49257175,8.59e-05,2]
[394947802,1764187703218,426.49257175,8.59e-05,2]
[394947803,1764187725469,426.49257175,8.59e-05,2]
[394947804,1764187733924,426.49257175,8.59e-05,2]
[394947852,1764187832722,-207.18681108,8.787e-05,2]
[394947854,1764187832732,-223.0,8.787e-05,2]
[394947856,1764187832741,-207.18681108,8.876e-05,2]
[394947858,1764187832750,-207.18681108,8.966e-05,2]
[394947860,1764187832759,-216.2202196,9.309e-05,2]
[394947862,1764187832768,-1200.0,9.699e-05,2]
[394947864,1764187832777,-495.92790603,9.7e-05,2]
[394947866,1764187832787,-892.67023085,9.7e-05,2]
[394947868,1764187832796,-1586.96929928,9.7e-05,2]
[394947870,1764187832805,-300.0,9.998e-05,2]
[394947872,1764187832815,-300.0,9.999e-05,2]
[394947874,1764187832824,-164.91050606,0.0001,2]
[394947876,1764187832833,-164.91050606,0.0001,2]
[394947878,1764187832842,-323.14067168,0.00010208,2]
[394947880,1764187832851,-189.059977,0.00010209,2]
[394947882,1764187832860,-500.0,0.00010209,2]
[394947883,1764187832870,-500.0,0.00010209,2]
[394947884,1764187832879,-500.0,0.00010209,2]
[394947885,1764187832888,-500.0,0.00010209,2]
[394947886,1764187832898,-500.0,0.00010209,2]
[394947887,1764187832907,-500.0,0.00010209,2]
[394947889,1764187832916,-500.0,0.00010209,2]
[394947891,1764187832925,-500.0,0.00010209,2]
[394947892,1764187832935,-500.0,0.00010209,2]
[394947893,1764187832945,-500.0,0.00010209,2]
[394947894,1764187832954,-500.0,0.00010209,2]
[394947895,1764187832964,-500.0,0.00010209,2]
[394947896,1764187832973,-500.0,0.00010209,2]
[394947897,1764187832982,-500.0,0.00010209,2]
[394947898,1764187832991,-546.28768454,0.00010209,2]
[394947899,1764187833001,-500.0,0.00010209,2]
[394947900,1764187833010,-500.0,0.00010209,2]
[394947901,1764187833020,-333.39947846,0.00010209,2]
[394947902,1764187833029,-500.0,0.00010209,2]
[394947903,1764187833038,-500.0,0.00010209,2]
[394947904,1764187833048,-500.0,0.00010209,2]
[394947905,1764187833058,-500.0,0.00010209,2]
[394947906,1764187833067,-500.0,0.00010209,2]
[394947907,1764187833077,-500.0,0.00010209,2]
[394947908,1764187833086,-500.0,0.00010209,2]
[394947909,1764187833096,-500.0,0.00010209,2]
[394947910,1764187833106,-500.0,0.00010209,2]
[394947911,1764187833115,-500.0,0.00010209,2]
[394947912,1764187833125,-500.0,0.00010209,2]
[394947913,1764187833135,-500.0,0.00010209,2]
[394947914,1764187833144,-500.0,0.00010209,2]
[394947915,1764187833154,-500.0,0.00010209,2]
[394947916,1764187833162,-500.0,0.00010209,2]
[394947917,1764187833171,-500.0,0.00010209,2]
[394947918,1764187833181,-500.0,0.00010209,2]
[394947919,1764187833190,-500.0,0.00010209,2]
[394947920,1764187833204,-500.0,0.00010209,2]
[394947921,1764187833222,-500.0,0.00010209,2]
[394947922,1764187833232,-500.0,0.00010209,2]
[394947923,1764187833241,-500.0,0.00010209,2]
[394947924,1764187833250,-500.0,0.00010209,2]
[394947925,1764187833259,-500.0,0.00010209,2]
[394947926,1764187833268,-500.0,0.00010209,2]
[394947927,1764187833277,-500.0,0.00010209,2]
[394947928,1764187833287,-500.0,0.00010209,2]
[394947929,1764187833299,-511.5144806,0.00010209,2]
[394947930,1764187833308,-500.0,0.00010209,2]
[394947931,1764187833317,-541.47931372,0.00010209,2]
[394947932,1764187833326,-541.47931372,0.00010209,2]
[394947933,1764187833336,-500.0,0.00010209,2]
[394947934,1764187833346,-541.47931372,0.00010209,2]
[394947935,1764187833356,-541.47931372,0.00010209,2]
[394947936,1764187833365,-500.0,0.00010209,2]
[394947937,1764187833375,-541.47931372,0.00010209,2]
[394947938,1764187833385,-500.0,0.00010209,2]
[394947939,1764187833394,-541.47931372,0.00010209,2]
[394947940,1764187833405,-541.47931372,0.00010209,2]
[394947941,1764187833414,-500.0,0.00010209,2]
[394947942,1764187833423,-541.47931372,0.00010209,2]
[394947943,1764187833434,-541.47931372,0.00010209,2]
[394947944,1764187833445,-500.59530613,0.00010209,2]
[394947945,1764187833455,-541.47931372,0.00010209,2]
[394947946,1764187833464,-541.47931372,0.00010209,2]
[394947947,1764187833474,-541.47931372,0.00010209,2]
[394947948,1764187833483,-541.47931372,0.00010209,2]
[394947949,1764187833493,-541.47931372,0.00010209,2]
[394947950,1764187833503,-541.47931372,0.00010209,2]
[394947951,1764187833512,-541.47931372,0.00010209,2]
[394947952,1764187833522,-541.47931372,0.00010209,2]
[394947953,1764187833531,-541.47931372,0.00010209,2]
[394947954,1764187833541,-541.47931372,0.00010209,2]
[394947955,1764187833552,-541.47931372,0.00010209,2]
[394947956,1764187833562,-541.47931372,0.00010209,2]
[394947957,1764187833571,-541.47931372,0.00010209,2]
[394947958,1764187833580,-541.47931372,0.00010209,2]
[394947959,1764187833589,-541.47931372,0.00010209,2]
[394947960,1764187833599,-541.47931372,0.00010209,2]
[394947961,1764187833609,-541.47931372,0.00010209,2]
[394947962,1764187833618,-541.47931372,0.00010209,2]
[394947963,1764187833627,-541.47931372,0.00010209,2]
[394947964,1764187833636,-541.47931372,0.00010209,2]
[394947965,1764187833645,-541.47931372,0.00010209,2]
[394947966,1764187833655,-541.47931372,0.00010209,2]
[394947967,1764187833664,-541.47931372,0.00010209,2]
[394947968,1764187833673,-541.47931372,0.00010209,2]
[394947969,1764187833685,-541.47931372,0.00010209,2]
[394947970,1764187833706,-541.47931372,0.00010209,2]
[394947971,1764187833718,-541.47931372,0.00010209,2]
[394947972,1764187833727,-541.47931372,0.00010209,2]
[394947973,1764187833736,-541.47931372,0.00010209,2]
[394947974,1764187833746,-541.47931372,0.00010209,2]
[394947975,1764187833755,-541.47931372,0.00010209,2]
[394947976,1764187833764,-541.47931372,0.00010209,2]
[394947977,1764187833773,-541.47931372,0.00010209,2]
[394947978,1764187833782,-541.47931372,0.00010209,2]
[394947979,1764187833792,-541.47931372,0.00010209,2]
[394947980,1764187833801,-541.47931372,0.00010209,2]
[394947981,1764187833810,-541.47931372,0.00010209,2]
[394947982,1764187833819,-515.99793423,0.00010209,2]
[394947983,1764187833829,-515.99793423,0.00010209,2]
[394947984,1764187833838,-515.99793423,0.00010209,2]
[394947985,1764187833847,-515.99793423,0.00010209,2]
[394947986,1764187833857,-515.99793423,0.00010209,2]
[394947987,1764187833867,-515.99793423,0.00010209,2]
[394947988,1764187833876,-515.99793423,0.00010209,2]
[394947989,1764187833886,-515.99793423,0.00010209,2]
[394947990,1764187833896,-515.99793423,0.00010209,2]
[394947991,1764187833905,-515.99793423,0.00010209,2]
[394947992,1764187833916,-515.99793423,0.00010209,2]
[394947993,1764187833926,-515.99793423,0.00010209,2]
[394947994,1764187833935,-515.99793423,0.00010209,2]
[394947995,1764187833945,-515.99793423,0.00010209,2]
[394947996,1764187833954,-515.99793423,0.00010209,2]
[394947997,1764187833964,-515.99793423,0.00010209,2]
[394947998,1764187833974,-515.99793423,0.00010209,2]
[394947999,1764187833983,-500.0,0.00010209,2]
[394948000,1764187833992,-35147.50537198,0.00010209,2]
[394948001,1764187834006,-1569.84241645,0.00010209,2]
[394948011,1764187838534,-430.18681108,8.699e-05,2]
[394948013,1764187838544,-318.68029672,0.00010209,2]
[394948015,1764187838556,-837.96,0.00010209,2]
[394948020,1764187838594,-4723.10850785,0.00010209,2]
[394948098,1764187841232,-453.0,0.00010209,2]
[394948344,1764187845033,-417.55037667,0.00010107,2]
[394948345,1764187845720,-3555.49290062,0.00010107,2]
[394948346,1764187845729,-263.1070994,0.00010209,2]
[394948359,1764187846746,-561.00000001,0.00010209,2]
[394948360,1764187846758,-302.0,0.00010209,2]
[394948363,1764188550456,-329.82101213,0.00022759,56]
[394948364,1764188550478,-171.20305095,0.00023734,30]
[394948365,1764188550499,-164.91050606,0.00024155,110]
[394948366,1764188550559,-4.24441873,0.00027636,30]
[394948367,1764188611189,260.25549587,0.00014,10]
[394948368,1764188619192,5000.0,0.00014,10]
[394948369,1764188627419,4062.99431921,0.00014,10]
[394948371,1764188806245,168.64256298,8.317e-05,2]
[394948372,1764188808289,303.55661336,8.317e-05,2]
[394948373,1764188834515,472.19917634,8.58e-05,2]
[394948414,1764189031843,-206.54213522,8.624e-05,2]
[394948416,1764189031854,-222.0,8.624e-05,2]
[394948418,1764189031863,-206.54213522,8.667e-05,2]
[394948420,1764189031873,-383.94940236,9.496e-05,2]
[394948422,1764189031882,-300.0,0.00010064,2]
[394948424,1764189031892,-300.0,0.00010064,2]
[394948444,1764189032065,-300.0,0.00010064,2]
[394948446,1764189032075,-680.9663272,0.00010064,2]
[394948449,1764189032088,-519.0336728,0.00010064,2]
[394948451,1764189032097,-2230.9663272,0.00010065,2]
[394948453,1764189032107,-47769.0336728,0.00010065,2]
[394948455,1764189032117,-1200.0,0.00010065,2]
[394948457,1764189032126,-500.0,0.00010065,2]
[394948459,1764189032135,-500.0,0.00010065,2]
[394948461,1764189032145,-500.0,0.00010065,2]
[394948463,1764189032153,-500.0,0.00010065,2]
[394948465,1764189032162,-500.0,0.00010065,2]
[394948467,1764189032171,-208.06013643,0.00010065,2]
[394948469,1764189032181,-500.0,0.00010065,2]
[394948471,1764189032190,-314.8883094,0.00010065,2]
[394948473,1764189032199,-500.0,0.00010065,2]
[394948474,1764189032208,-500.0,0.00010065,2]
[394948475,1764189032218,-500.0,0.00010065,2]
[394948476,1764189032227,-500.0,0.00010065,2]
[394948477,1764189032236,-500.0,0.00010065,2]
[394948478,1764189032245,-500.0,0.00010065,2]
[394948479,1764189032254,-500.0,0.00010065,2]
[394948480,1764189032263,-500.0,0.00010065,2]
[394948481,1764189032274,-500.0,0.00010065,2]
[394948482,1764189032283,-500.0,0.00010065,2]
[394948483,1764189032293,-500.0,0.00010065,2]
[394948484,1764189032302,-500.0,0.00010065,2]
[394948485,1764189032311,-500.0,0.00010065,2]
[394948486,1764189032320,-357.49942225,0.00010065,2]
[394948487,1764189032330,-500.0,0.00010065,2]
[394948488,1764189032341,-6278.05797752,0.00010067,2]
[394948489,1764189032350,-1000.0,0.00010101,2]
[394948490,1764189032359,-1000.0,0.00010101,2]
[394948491,1764189032368,-1000.0,0.00010101,2]
[394948492,1764189032381,-1000.0,0.00010101,2]
[394948493,1764189032390,-1000.0,0.00010101,2]
[394948494,1764189032400,-1000.0,0.00010101,2]
[394948495,1764189032410,-1000.0,0.00010101,2]
[394948497,1764189032419,-1000.0,0.00010101,2]
[394948499,1764189032428,-1000.0,0.00010101,2]
[394948501,1764189032437,-1000.0,0.00010101,2]
[394948503,1764189032447,-1000.0,0.00010101,2]
[394948505,1764189032456,-1000.0,0.00010101,2]
[394948507,1764189032466,-1000.0,0.00010101,2]
[394948509,1764189032476,-1000.0,0.00010101,2]
[394948511,1764189032491,-1000.0,0.00010101,2]
[394948513,1764189032501,-1000.0,0.00010101,2]
[394948515,1764189032510,-1000.0,0.00010101,2]
[394948517,1764189032519,-1019.30768181,0.00010101,2]
[394948519,1764189032528,-411.10406165,0.00010101,2]
[394948521,1764189032538,-1909.45521526,0.00010101,2]
[394948523,1764189032547,-250.0,0.00010101,2]
[394948524,1764189032556,-250.0,0.00010101,2]
[394948526,1764189032565,-250.0,0.00010101,2]
[394948528,1764189032579,-187.78006525,0.00010101,2]
[394948530,1764189032588,-250.0,0.00010101,2]
[394948533,1764189032599,-160.0,0.00010101,2]
[394948534,1764189032608,-250.0,0.00010101,2]
[394948536,1764189032618,-250.0,0.00010101,2]
[394948539,1764189032628,-160.0,0.00010101,2]
[394948540,1764189032638,-250.0,0.00010101,2]
[394948543,1764189032649,-250.0,0.00010101,2]
[394948545,1764189032659,-250.0,0.00010101,2]
[394948547,1764189032669,-160.0,0.00010101,2]
[394948548,1764189032682,-250.0,0.00010101,2]
[394948550,1764189032691,-250.0,0.00010101,2]
[394948552,1764189032700,-160.0,0.00010101,2]
[394948554,1764189032709,-250.0,0.00010101,2]
[394948556,1764189032721,-250.0,0.00010101,2]
[394948558,1764189032731,-160.0,0.00010101,2]
[394948560,1764189032740,-250.0,0.00010101,2]
[394948562,1764189032751,-250.0,0.00010101,2]
[394948564,1764189032761,-224.01532804,0.00010101,2]
[394948566,1764189032770,-250.0,0.00010101,2]
[394948568,1764189032779,-250.0,0.00010101,2]
[394948570,1764189032788,-250.0,0.00010101,2]
[394948572,1764189032799,-343.98336768,0.00010101,2]
[394948574,1764189032808,-250.0,0.00010101,2]
[394948576,1764189032818,-250.0,0.00010101,2]
[394948578,1764189032827,-3.33157516,0.00010101,2]
[394948581,1764189032843,-246.66842484,0.00010101,2]
[394948583,1764189032852,-250.0,0.00010101,2]
[394948585,1764189032862,-250.0,0.00010101,2]
[394948587,1764189032871,-250.0,0.00010101,2]
[394948589,1764189032881,-250.0,0.00010101,2]
[394948591,1764189032891,-250.0,0.00010101,2]
[394948592,1764189032900,-250.0,0.00010101,2]
[394948595,1764189032910,-250.0,0.00010101,2]
[394948596,1764189032919,-228.54839374,0.00010101,2]
[394948599,1764189032935,-21.45160626,0.00010101,2]
[394948601,1764189032945,-250.0,0.00010101,2]
[394948603,1764189032954,-250.0,0.00010101,2]
[394948605,1764189032963,-250.0,0.00010101,2]
[394948607,1764189032972,-250.0,0.00010101,2]
[394948609,1764189032982,-250.0,0.00010101,2]
[394948611,1764189032992,-250.0,0.00010101,2]
[394948613,1764189033001,-250.0,0.00010101,2]
[394948615,1764189033010,-250.0,0.00010101,2]
[394948617,1764189033020,-250.0,0.00010101,2]
[394948619,1764189033030,-500.0,0.00010101,2]
[394948621,1764189033039,-226.41190309,0.00010106,2]
[394948623,1764189033051,-101.08709691,0.00010106,2]
[394948625,1764189033060,-28188.42958301,0.00010107,2]
[394948648,1764189037651,-293.69590771,0.00010064,2]
[394948649,1764189037661,-323.96404589,0.00010107,2]
[394948650,1764189037677,-421637.51781445,0.00010107,2]
[394948651,1764189037707,-1668.75000003,0.00010107,2]
[394948652,1764189037719,-653.5749005,0.00010107,2]
[394948653,1764189037730,-4874.98644641,0.00010107,2]
[394948654,1764189037742,-26250.45435656,0.00010107,2]
[394948680,1764189039990,-576.57381697,0.00010107,2]
[394948681,1764189040038,-4545.07310331,0.00010107,2]
[394948682,1764189040049,-10423.99146691,0.00010107,2]
[394948683,1764189040060,-303.52,0.00010107,2]
[394948684,1764189040074,-554.04774,0.00010107,2]
[394948706,1764189044638,-29580.65773553,0.00010107,2]
[394948707,1764189044652,-1273.9610882,0.00010107,2]
[394948718,1764189045833,-2538.71236366,0.00010107,2]
[394948720,1764189045845,-4771.30280807,0.00010107,2]
[394948722,1764189045856,-516.50743114,0.00010107,2]
[394948723,1764189045890,-121591.59358585,0.00010107,2]
[394948724,1764189045903,-14881.7838706,0.00010107,2]
[394948725,1764189045915,-61735.32158789,0.00010107,2]
[394948726,1764189046002,-444.40811091,0.00010107,2]
[394948749,1764189619971,722.0,8.525e-05,2]
[394948752,1764189642680,348.15364507,8.525e-05,2]
[394948753,1764189642708,373.84635493,8.525e-05,2]
[394948754,1764189650559,500.0,8.525e-05,2]
[394948755,1764189665353,722.0,8.525e-05,2]
[394948756,1764189680672,222.0,8.525e-05,2]
[394948757,1764189688833,222.0,8.525e-05,2]
[394948758,1764189704406,222.0,8.525e-05,2]
[394948759,1764189712215,222.0,8.525e-05,2]
[394948761,1764189727769,222.0,8.525e-05,2]
[394948762,1764189735503,222.0,8.525e-05,2]
[394948763,1764189751097,222.0,8.525e-05,2]
[394948764,1764189758818,222.0,8.525e-05,2]
[394948765,1764189773896,222.0,8.525e-05,2]
[394948766,1764189781670,222.0,8.525e-05,2]
[394948767,1764189796763,222.0,8.525e-05,2]
[394948768,1764189805119,222.0,8.525e-05,2]
[394948769,1764189820732,222.0,8.525e-05,2]
[394948770,1764189828507,222.0,8.525e-05,2]
[394948771,1764189844144,222.0,8.525e-05,2]
[394948772,1764189851910,74.15364507,8.525e-05,2]
[394948773,1764190050690,164.91050606,0.00022742,56]
[394948803,1764190231975,-220.0,8.38e-05,2]
[394948804,1764190231985,-242.228,8.38e-05,2]
[394948835,1764190237880,-115.05193538,8.38e-05,2]
[394948837,1764190237890,-202.41129251,8.397e-05,2]
[394948839,1764190237900,-182.53677211,8.482e-05,2]
[394949042,1764190240073,-19.8745204,8.482e-05,2]
[394949044,1764190240083,-202.41129251,8.568e-05,2]
[394949046,1764190240092,-309.09328742,9.056e-05,2]
[394949051,1764190240127,-500.0,9.056e-05,2]
[394949118,1764190244324,-1375.14428318,8.965e-05,2]
[394949119,1764190244333,-1375.14428318,9.056e-05,2]
[394949120,1764190244343,-250.0,9.221e-05,2]
[394949121,1764190244353,-1200.0,9.951e-05,2]
[394949122,1764190244362,-270.23577518,9.951e-05,2]
[394949123,1764190245018,-229.76422482,9.951e-05,2]
[394949124,1764190245028,-500.0,9.951e-05,2]
[394949125,1764190245038,-385.74994223,9.951e-05,2]
[394949126,1764190245047,-1200.0,9.952e-05,2]
[394949127,1764190245058,-300.0,9.952e-05,2]
[394949128,1764190245069,-287.94676634,9.953e-05,2]
[394949137,1764190246050,-501.05,9.953e-05,2]
[394949139,1764190246062,-454.932072,9.953e-05,2]
[394949144,1764190833799,164.820829,7.968e-05,2]
[394949145,1764191030295,1983.94842012,8.056e-05,2]
[394949146,1764191045863,1983.94842012,8.056e-05,2]
[394949147,1764191053928,1904.09821597,8.056e-05,2]
[394949148,1764191210966,1983.94842012,8.056e-05,2]
[394949149,1764191245516,-198.36306666,8.178e-05,2]
[394949150,1764191245544,-198.36306666,8.219e-05,2]
[394949151,1764191245568,-221.0,8.471e-05,2]
[394949152,1764191245592,-1200.0,8.898e-05,2]
[394949153,1764191245615,-300.0,8.898e-05,2]
[394949154,1764191245638,-50000.0,8.899e-05,2]
[394949155,1764191245662,-1200.0,8.899e-05,2]
[394949156,1764191245693,-205.58713539,8.899e-05,2]
[394949157,1764191245724,-500.0,8.899e-05,2]
[394949158,1764191245749,-242.86462679,8.899e-05,2]
[394949159,1764191245780,-500.0,8.899e-05,2]
[394949160,1764191245809,-500.0,8.899e-05,2]
[394949161,1764191245838,-500.0,8.899e-05,2]
[394949162,1764191245866,-500.0,8.899e-05,2]
[394949163,1764191245895,-500.0,8.899e-05,2]
[394949164,1764191245924,-238.57499422,8.899e-05,2]
[394949165,1764191245948,-261.999,8.901e-05,2]
[394949166,1764191245973,-2965.2403644,8.997e-05,2]
[394949167,1764191245998,-300.0,9.175e-05,2]
[394949168,1764191246024,-300.0,9.175e-05,2]
[394949169,1764191246049,-300.0,9.175e-05,2]
[394949170,1764191246075,-300.0,9.175e-05,2]
[394949171,1764191246101,-300.0,9.175e-05,2]
[394949172,1764191246126,-300.0,9.175e-05,2]
[394949173,1764191246152,-300.0,9.175e-05,2]
[394949174,1764191246177,-300.0,9.175e-05,2]
[394949175,1764191246202,-300.0,9.175e-05,2]
[394949176,1764191246226,-300.0,9.175e-05,2]
[394949177,1764191246252,-300.0,9.175e-05,2]
[394949178,1764191246283,-300.0,9.175e-05,2]
[394949179,1764191246308,-300.0,9.175e-05,2]
[394949180,1764191246334,-300.0,9.175e-05,2]
[394949181,1764191246363,-300.0,9.175e-05,2]
[394949182,1764191246388,-600.0,9.357e-05,2]
[394949183,1764191246411,-5526.68663175,9.742e-05,2]
[394949184,1764191246434,-1680.0,9.788e-05,2]
[394949185,1764191246458,-420.0,9.788e-05,2]
[394949186,1764191246481,-1680.0,9.789e-05,2]
[394949187,1764191246504,-500.0,9.882e-05,2]
[394949188,1764191246527,-581.60274674,9.883e-05,2]
[394949189,1764191246549,-500.0,9.883e-05,2]
[394949190,1764191246573,-500.0,9.883e-05,2]
[394949191,1764191246596,-500.0,9.883e-05,2]
[394949192,1764191246618,-500.0,9.883e-05,2]
[394949193,1764191246642,-598.52663406,9.883e-05,2]
[394949194,1764191246665,-500.0,9.883e-05,2]
[394949195,1764191246688,-500.0,9.883e-05,2]
[394949196,1764191246711,-500.0,9.883e-05,2]
[394949197,1764191246733,-500.0,9.883e-05,2]
[394949198,1764191246756,-500.0,9.883e-05,2]
[394949199,1764191246778,-364.36149946,9.883e-05,2]
[394949200,1764191246801,-500.0,9.883e-05,2]
[394949201,1764191246824,-500.0,9.883e-05,2]
[394949202,1764191246848,-500.0,9.883e-05,2]
[394949203,1764191246872,-500.0,9.883e-05,2]
[394949204,1764191246895,-500.0,9.883e-05,2]
[394949205,1764191246918,-500.0,9.883e-05,2]
[394949206,1764191246940,-500.0,9.883e-05,2]
[394949207,1764191246963,-311.12087516,9.883e-05,2]
[394949208,1764191246987,-163.4485075,9.883e-05,2]
[394949209,1764191247010,-500.0,9.883e-05,2]
[394949210,1764191247035,-160.04046183,9.883e-05,2]
[394949211,1764191247057,-500.0,9.883e-05,2]
[394949212,1764191247081,-500.0,9.883e-05,2]
[394949213,1764191247104,-500.0,9.883e-05,2]
[394949214,1764191247128,-500.0,9.883e-05,2]
[394949215,1764191247153,-500.0,9.883e-05,2]
[394949216,1764191247176,-500.0,9.883e-05,2]
[394949217,1764191247199,-500.0,9.883e-05,2]
[394949218,1764191247221,-500.0,9.883e-05,2]
[394949219,1764191247246,-500.0,9.883e-05,2]
[394949220,1764191247269,-204.26614149,9.883e-05,2]
[394949221,1764191247292,-500.93393088,9.883e-05,2]
[394949222,1764191247315,-500.0,9.883e-05,2]
[394949223,1764191247338,-501.98483195,9.883e-05,2]
[394949224,1764191247365,-500.0,9.883e-05,2]
[394949225,1764191247388,-500.0,9.883e-05,2]
[394949226,1764191247412,-500.0,9.883e-05,2]
[394949227,1764191247435,-158.67177986,9.883e-05,2]
[394949228,1764191247457,-151.2470196,9.883e-05,2]
[394949229,1764191247483,-250.0,9.895e-05,2]
[394949230,1764191247509,-250.0,9.895e-05,2]
[394949231,1764191247534,-250.0,9.895e-05,2]
[394949232,1764191247558,-250.0,9.895e-05,2]
[394949233,1764191247585,-250.0,9.895e-05,2]
[394949234,1764191247608,-250.0,9.895e-05,2]
[394949235,1764191247634,-250.0,9.895e-05,2]
[394949236,1764191247657,-250.0,9.895e-05,2]
[394949237,1764191247682,-280.26861375,9.895e-05,2]
[394949238,1764191247705,-250.0,9.895e-05,2]
[394949239,1764191247728,-250.0,9.895e-05,2]
[394949240,1764191247752,-250.0,9.895e-05,2]
[394949241,1764191247776,-250.0,9.895e-05,2]
[394949242,1764191247806,-250.0,9.895e-05,2]
[394949243,1764191247830,-250.0,9.895e-05,2]
[394949244,1764191247958,-1772.0,9.895e-05,2]
[394949245,1764191248013,-500.0,9.895e-05,2]
[394949246,1764191248037,-500.0,9.895e-05,2]
[394949247,1764191248060,-500.0,9.895e-05,2]
[394949248,1764191248083,-500.0,9.895e-05,2]
[394949249,1764191248106,-500.0,9.895e-05,2]
[394949250,1764191248131,-1462.0,9.895e-05,2]
[394949251,1764191248156,-500.0,9.895e-05,2]
[394949252,1764191248180,-151.0,9.895e-05,2]
[394949253,1764191248204,-500.0,9.895e-05,2]
[394949254,1764191248227,-151.0,9.895e-05,2]
[394949255,1764191248250,-151.0,9.895e-05,2]
[394949256,1764191248274,-500.0,9.895e-05,2]
[394949257,1764191248298,-500.0,9.895e-05,2]
[394949258,1764191248322,-151.0,9.895e-05,2]
[394949259,1764191248346,-151.0,9.895e-05,2]
[394949260,1764191248375,-151.0,9.895e-05,2]
[394949261,1764191248397,-247.82873822,9.895e-05,2]
[394949262,1764191248421,-500.0,9.895e-05,2]
[394949263,1764191248448,-500.0,9.895e-05,2]
[394949264,1764191248472,-500.0,9.895e-05,2]
[394949265,1764191248495,-558.01176022,9.898e-05,2]
[394949266,1764191248523,-890000.0,9.901e-05,2]
[394949267,1764191248545,-1439.00757341,9.931e-05,2]
[394949268,1764191253220,-500.0,9.883e-05,2]
[394949269,1764191253243,-500.0,9.883e-05,2]
[394949270,1764191253265,-170.85541121,9.883e-05,2]
[394949271,1764191253288,-500.0,9.883e-05,2]